lending/lending_fUSD_20250121
["ID","MTS","AMOUNT","RATE_DAILY","PERIOD"]
[349821233,1737451849860,-500.0,0.00019725,2]
[349821234,1737451849870,-500.0,0.00019725,2]
[349821235,1737451849879,-357.00137754,0.00019725,2]
[349821236,1737451849889,-500.0,0.00019725,2]
[349821237,1737451849899,-1431.03,0.00019725,2]
[349821238,1737451849909,-500.0,0.00019725,2]
[349821239,1737451849919,-500.0,0.00019725,2]
[349821240,1737451849928,-500.0,0.00019725,2]
[349821241,1737451849938,-500.0,0.00019725,2]
[349821242,1737451849948,-500.0,0.00019725,2]
[349821243,1737451849958,-500.0,0.00019725,2]
[349821244,1737451849968,-500.0,0.00019725,2]
[349821245,1737451849977,-500.0,0.00019725,2]
[349821246,1737451849987,-500.0,0.00019725,2]
[349821247,1737451849996,-500.0,0.00019725,2]
[349821248,1737451850009,-500.0,0.00019725,2]
[349821249,1737451850019,-548.89594362,0.00019725,2]
[349821250,1737451850028,-500.0,0.00019725,2]
[349821251,1737451850039,-500.0,0.00019725,2]
[349821252,1737451850048,-500.0,0.00019725,2]
[349821253,1737451850058,-500.0,0.00019725,2]
[349821254,1737451850067,-514.10484281,0.00019725,2]
[349821255,1737451850077,-500.0,0.00019725,2]
[349821256,1737451850086,-500.0,0.00019725,2]
[349821257,1737451850096,-500.0,0.00019725,2]
[349821258,1737451850105,-500.0,0.00019725,2]
[349821259,1737451850115,-300.0,0.00019725,2]
[349821260,1737451850124,-714.81,0.00019725,2]
[349821261,1737451850134,-500.0,0.00019726,2]
[349821262,1737451850143,-500.0,0.00019726,2]
[349821263,1737451850152,-500.0,0.00019726,2]
[349821264,1737451850161,-500.0,0.00019726,2]
[349821265,1737451850170,-500.0,0.00019726,2]
[349821266,1737451850180,-500.0,0.00019726,2]
[349821267,1737451850190,-500.0,0.00019726,2]
[349821268,1737451850199,-500.0,0.00019726,2]
[349821269,1737451850209,-500.0,0.00019726,2]
[349821270,1737451850218,-500.0,0.00019726,2]
[349821271,1737451850227,-500.0,0.00019726,2]
[349821272,1737451850237,-500.0,0.00019726,2]
[349821273,1737451850246,-1366.89,0.00019726,2]
[349821274,1737451850258,-500.0,0.00019726,2]
[349821275,1737451850268,-500.0,0.00019726,2]
[349821276,1737451850277,-643.51,0.00019726,2]
[349821277,1737451850286,-500.0,0.00019726,2]
[349821278,1737451850295,-500.0,0.00019726,2]
[349821279,1737451850305,-500.0,0.00019726,2]
[349821280,1737451850314,-500.0,0.00019726,2]
[349821281,1737451850324,-500.0,0.00019726,2]
[349821282,1737451850333,-500.0,0.00019726,2]
[349821283,1737451850343,-500.0,0.00019726,2]
[349821284,1737451850352,-500.0,0.00019726,2]
[349821285,1737451850361,-500.0,0.00019726,2]
[349821286,1737451850375,-500.0,0.00019726,2]
[349821287,1737451850385,-500.0,0.00019726,2]
[349821288,1737451850394,-500.0,0.00019726,2]
[349821289,1737451850403,-257.25992266,0.00019726,2]
[349821290,1737451850413,-500.0,0.00019726,2]
[349821291,1737451850423,-500.0,0.00019726,2]
[349821292,1737451850432,-500.0,0.00019726,2]
[349821293,1737451850443,-632.4,0.00019726,2]
[349821294,1737451850454,-500.0,0.00019726,2]
[349821295,1737451850464,-500.0,0.00019726,2]
[349821296,1737451850474,-646.19192156,0.00019726,2]
[349821297,1737451850483,-500.0,0.00019726,2]
[349821298,1737451850493,-500.0,0.00019726,2]
[349821299,1737451850504,-500.0,0.00019726,2]
[349821300,1737451850514,-500.0,0.00019726,2]
[349821301,1737451850523,-500.0,0.00019726,2]
[349821302,1737451850533,-500.0,0.00019726,2]
[349821303,1737451850542,-523.0126514,0.00019726,2]
[349821304,1737451850551,-500.0,0.00019726,2]
[349821305,1737451850561,-500.0,0.00019726,2]
[349821306,1737451850570,-500.0,0.00019726,2]
[349821307,1737451850580,-500.0,0.00019726,2]
[349821308,1737451850590,-500.0,0.00019726,2]
[349821309,1737451850599,-500.0,0.00019726,2]
[349821310,1737451850608,-500.0,0.00019726,2]
[349821311,1737451850618,-500.0,0.00019726,2]
[349821312,1737451850628,-500.0,0.00019726,2]
[349821313,1737451850638,-500.0,0.00019726,2]
[349821314,1737451850647,-500.0,0.00019726,2]
[349821315,1737451850657,-500.0,0.00019726,2]
[349821316,1737451850667,-500.0,0.00019726,2]
[349821317,1737451850676,-1442.47,0.00019726,2]
[349821318,1737451850686,-1618.9,0.00019726,2]
[349821319,1737451850695,-784.62,0.00019726,2]
[349821320,1737451850704,-1181.46,0.00019726,2]
[349821321,1737451850713,-700.2,0.00019726,2]
[349821322,1737451850723,-500.0,0.00019726,2]
[349821323,1737451850732,-623.27854637,0.00019726,2]
[349821324,1737451850742,-864.13,0.00019726,2]
[349821325,1737451850751,-1046.8,0.00019726,2]
[349821326,1737451850761,-2225.67,0.00019726,2]
[349821327,1737451850771,-997.49,0.00019726,2]
[349821328,1737451850780,-500.0,0.00019726,2]
[349821329,1737451850790,-342.45995454,0.00019726,2]
[349821330,1737451850798,-643.01,0.00019726,2]
[349821331,1737451850808,-500.0,0.00019726,2]
[349821332,1737451850817,-1363.79,0.00019726,2]
[349821333,1737451850827,-500.0,0.00019726,2]
[349821334,1737451850837,-968.6,0.00019726,2]
[349821335,1737451850847,-731.54,0.00019726,2]
[349821336,1737451850856,-671.55,0.00019726,2]
[349821337,1737451850866,-500.0,0.00019726,2]
[349821338,1737451850876,-1512.89,0.00019726,2]
[349821339,1737451850885,-1824.0,0.00019726,2]
[349821340,1737451850895,-500.0,0.00019726,2]
[349821341,1737451850903,-500.0,0.00019726,2]
[349821342,1737451850912,-720.36,0.00019726,2]
[349821343,1737451850920,-500.0,0.00019726,2]
[349821344,1737451850930,-500.0,0.00019726,2]
[349821345,1737451850939,-500.0,0.00019726,2]
[349821346,1737451850948,-500.0,0.00019726,2]
[349821347,1737451850957,-500.0,0.00019726,2]
[349821348,1737451850966,-500.0,0.00019726,2]
[349821349,1737451850976,-500.0,0.00019726,2]
[349821350,1737451850986,-1598.88,0.00019726,2]
[349821351,1737451850996,-1625.7,0.00019726,2]
[349821352,1737451851008,-500.0,0.00019726,2]
[349821353,1737451851018,-11076.26,0.00019726,2]
[349821354,1737451851028,-500.0,0.00019726,2]
[349821355,1737451851039,-298.33,0.00019793,2]
[349821356,1737451851049,-949.85,0.00019797,2]
[349821357,1737451851059,-30000.0,0.00019892,2]
[349821358,1737451851068,-405.71652632,0.0001994,2]
[349821359,1737451851078,-502.56992317,0.00019973,2]
[349821360,1737451851088,-2429.59781896,0.00019975,2]
[349821361,1737451851098,-153.76225086,0.00019983,2]
[349821362,1737451851107,-500.0,0.00019998,2]
[349821363,1737451851117,-500.0,0.00019998,2]
[349821364,1737451851127,-500.0,0.00019998,2]
[349821365,1737451851136,-647.89,0.00019998,2]
[349821366,1737451851146,-893.13,0.00019998,2]
[349821367,1737451851155,-500.0,0.00019998,2]
[349821368,1737451851165,-500.0,0.00019998,2]
[349821369,1737451851174,-500.0,0.00019998,2]
[349821370,1737451851184,-500.0,0.00019998,2]
[349821371,1737451851193,-500.0,0.00019998,2]
[349821372,1737451851203,-500.0,0.00019998,2]
[349821373,1737451851212,-500.0,0.00019998,2]
[349821374,1737451851222,-500.0,0.00019998,2]
[349821375,1737451851231,-500.0,0.00019998,2]
[349821376,1737451851240,-566.08372,0.00019998,2]
[349821377,1737451851252,-541.49826183,0.00019998,2]
[349821378,1737451851262,-500.0,0.00019998,2]
[349821379,1737451851271,-500.0,0.00019998,2]
[349821380,1737451851281,-500.0,0.00019998,2]
[349821381,1737451851290,-500.0,0.00019998,2]
[349821382,1737451851300,-500.0,0.00019998,2]
[349821383,1737451851309,-517.25659685,0.00019998,2]
[349821384,1737451851319,-500.0,0.00019998,2]
[349821385,1737451851327,-500.0,0.00019998,2]
[349821386,1737451851337,-183.36507153,0.00019998,2]
[349821387,1737451851346,-500.0,0.00019998,2]
[349821388,1737451851355,-500.0,0.00019998,2]
[349821389,1737451851366,-500.0,0.00019998,2]
[349821390,1737451851375,-500.0,0.00019998,2]
[349821391,1737451851387,-500.0,0.00019998,2]
[349821392,1737451851396,-500.0,0.00019998,2]
[349821393,1737451851406,-500.0,0.00019998,2]
[349821394,1737451851416,-500.0,0.00019998,2]
[349821395,1737451851425,-500.0,0.00019998,2]
[349821396,1737451851435,-500.0,0.00019998,2]
[349821397,1737451851444,-500.0,0.00019998,2]
[349821398,1737451851454,-500.0,0.00019998,2]
[349821399,1737451851464,-500.0,0.00019998,2]
[349821400,1737451851474,-500.0,0.00019998,2]
[349821401,1737451851487,-500.0,0.00019998,2]
[349821402,1737451851498,-500.0,0.00019998,2]
[349821403,1737451851509,-500.0,0.00019998,2]
[349821404,1737451851518,-500.0,0.00019998,2]
[349821405,1737451851527,-550.69,0.00019998,2]
[349821406,1737451851536,-525.13,0.00019998,2]
[349821407,1737451851546,-521.1,0.00019998,2]
[349821408,1737451851556,-797.02,0.00019998,2]
[349821409,1737451851565,-556.55,0.00019998,2]
[349821410,1737451851574,-1866.84,0.00019998,2]
[349821411,1737451851586,-2519.65,0.00019998,2]
[349821412,1737451851595,-548.24,0.00019998,2]
[349821413,1737451851605,-777.32,0.00019998,2]
[349821414,1737451851615,-500.0,0.00019998,2]
[349821415,1737451851624,-500.0,0.00019998,2]
[349821416,1737451851634,-1125.78,0.00019998,2]
[349821417,1737451851643,-155.553152,0.00019998,2]
[349821418,1737451851653,-500.0,0.00019998,2]
[349821419,1737451851662,-500.0,0.00019998,2]
[349821420,1737451851671,-500.0,0.00019998,2]
[349821421,1737451851681,-788.4,0.00019998,2]
[349821422,1737451851690,-500.0,0.00019998,2]
[349821423,1737451851699,-1354.69,0.00019998,2]
[349821424,1737451851709,-500.0,0.00019998,2]
[349821425,1737451851718,-500.0,0.00019998,2]
[349821426,1737451851727,-500.0,0.00019998,2]
[349821427,1737451851736,-500.0,0.00019998,2]
[349821428,1737451851746,-500.0,0.00019998,2]
[349821429,1737451851757,-500.0,0.00019998,2]
[349821430,1737451851766,-500.0,0.00019998,2]
[349821431,1737451851775,-500.0,0.00019998,2]
[349821432,1737451851785,-844.31,0.00019998,2]
[349821433,1737451851794,-208.822323,0.00019998,2]
[349821434,1737451851803,-1391.48,0.00019998,2]
[349821435,1737451851813,-1002.55,0.00019998,2]
[349821436,1737451851822,-500.0,0.00019998,2]
[349821437,1737451851832,-256.47,0.00019998,2]
[349821438,1737451851841,-500.0,0.00019998,2]
[349821439,1737451851850,-640.71,0.00019998,2]
[349821440,1737451851860,-500.0,0.00019998,2]
[349821441,1737451851870,-500.0,0.00019998,2]
[349821442,1737451851879,-500.0,0.00019998,2]
[349821443,1737451851888,-731.04,0.00019998,2]
[349821444,1737451851898,-500.0,0.00019998,2]
[349821445,1737451851907,-500.0,0.00019998,2]
[349821446,1737451851917,-500.0,0.00019998,2]
[349821447,1737451851927,-714.65,0.00019998,2]
[349821448,1737451851936,-500.0,0.00019998,2]
[349821449,1737451851946,-505.72,0.00019998,2]
[349821450,1737451851956,-500.0,0.00019998,2]
[349821451,1737451851966,-1332.26,0.00019998,2]
[349821452,1737451851976,-500.0,0.00019998,2]
[349821453,1737451851986,-500.0,0.00019998,2]
[349821454,1737451851997,-500.0,0.00019998,2]
[349821455,1737451852008,-1133.86,0.00019998,2]
[349821456,1737451852017,-500.0,0.00019998,2]
[349821457,1737451852027,-500.0,0.00019998,2]
[349821458,1737451852037,-623.68,0.00019998,2]
[349821459,1737451852048,-500.0,0.00019998,2]
[349821460,1737451852058,-1398.4,0.00019998,2]
[349821461,1737451852068,-500.0,0.00019998,2]
[349821462,1737451852077,-500.0,0.00019998,2]
[349821463,1737451852087,-1012.63,0.00019998,2]
[349821464,1737451852096,-500.0,0.00019998,2]
[349821465,1737451852106,-500.0,0.00019998,2]
[349821466,1737451852116,-1816.63,0.00019998,2]
[349821467,1737451852126,-500.0,0.00019998,2]
[349821468,1737451852136,-2242.61,0.00019998,2]
[349821469,1737451852145,-500.0,0.00019998,2]
[349821470,1737451852155,-500.0,0.00019998,2]
[349821471,1737451852165,-537.32,0.00019998,2]
[349821472,1737451852282,-500.0,0.00019998,2]
[349821473,1737451852293,-500.0,0.00019998,2]
[349821474,1737451852303,-500.0,0.00019998,2]
[349821475,1737451852312,-598.63,0.00019998,2]
[349821476,1737451852322,-819.36,0.00019998,2]
[349821477,1737451852330,-500.0,0.00019998,2]
[349821478,1737451852339,-500.0,0.00019998,2]
[349821479,1737451852349,-878.52,0.00019998,2]
[349821480,1737451852358,-500.0,0.00019998,2]
[349821481,1737451852368,-500.0,0.00019998,2]
[349821482,1737451852380,-500.0,0.00019998,2]
[349821483,1737451852389,-865.06,0.00019998,2]
[349821484,1737451852399,-2333.67,0.00019998,2]
[349821485,1737451852409,-524.02587036,0.00019998,2]
[349821486,1737451852418,-1054.66,0.00019998,2]
[349821487,1737451852427,-500.0,0.00019998,2]
[349821488,1737451852437,-639.03,0.00019998,2]
[349821489,1737451852446,-1659.51,0.00019998,2]
[349821490,1737451852455,-500.0,0.00019998,2]
[349821491,1737451852464,-788.63,0.00019998,2]
[349821492,1737451852482,-500.0,0.00019998,2]
[349821493,1737451852499,-2681.81,0.00019998,2]
[349821494,1737451852509,-500.0,0.00019998,2]
[349821495,1737451852518,-500.0,0.00019998,2]
[349821496,1737451852527,-522.11858591,0.00019998,2]
[349821497,1737451852536,-792.79,0.00019998,2]
[349821498,1737451852545,-500.0,0.00019998,2]
[349821499,1737451852555,-607.89,0.00019998,2]
[349821500,1737451852564,-809.0,0.00019998,2]
[349821501,1737451852573,-630.14,0.00019998,2]
[349821502,1737451852583,-500.0,0.00019998,2]
[349821503,1737451852592,-519.16228559,0.00019998,2]
[349821504,1737451852602,-1650.93,0.00019998,2]
[349821505,1737451852611,-1908.06,0.00019998,2]
[349821506,1737451852623,-500.0,0.00019998,2]
[349821507,1737451852632,-500.0,0.00019998,2]
[349821508,1737451852642,-1008.63,0.00019998,2]
[349821509,1737451852651,-500.0,0.00019998,2]
[349821510,1737451852661,-609.84,0.00019998,2]
[349821511,1737451852670,-2139.5,0.00019998,2]
[349821512,1737451852680,-1503.49,0.00019998,2]
[349821513,1737451852690,-1375.23,0.00019998,2]
[349821514,1737451852699,-500.0,0.00019998,2]
[349821515,1737451852710,-500.0,0.00019998,2]
[349821516,1737451852720,-900.29,0.00019998,2]
[349821517,1737451852735,-500.0,0.00019999,2]
[349821518,1737451852744,-500.0,0.00019999,2]
[349821519,1737451852755,-500.0,0.00019999,2]
[349821520,1737451852765,-500.0,0.00019999,2]
[349821521,1737451852774,-500.0,0.00019999,2]
[349821522,1737451852783,-508.13369328,0.00019999,2]
[349821523,1737451852792,-500.0,0.00019999,2]
[349821524,1737451852802,-687.44,0.00019999,2]
[349821525,1737451852811,-581.68435356,0.00019999,2]
[349821526,1737451852820,-500.0,0.00019999,2]
[349821527,1737451852829,-500.0,0.00019999,2]
[349821528,1737451852838,-500.0,0.00019999,2]
[349821529,1737451852847,-565.39,0.00019999,2]
[349821530,1737451852856,-500.0,0.00019999,2]
[349821531,1737451852867,-500.0,0.00019999,2]
[349821532,1737451852877,-500.0,0.00019999,2]
[349821533,1737451852887,-275.65703794,0.00019999,2]
[349821534,1737451852896,-500.0,0.00019999,2]
[349821535,1737451852906,-500.0,0.00019999,2]
[349821536,1737451852915,-984.73,0.00019999,2]
[349821537,1737451852924,-500.0,0.00019999,2]
[349821538,1737451852933,-703.52,0.00019999,2]
[349821539,1737451852943,-500.0,0.00019999,2]
[349821540,1737451852952,-500.0,0.00019999,2]
[349821541,1737451852962,-500.0,0.00019999,2]
[349821542,1737451852971,-500.0,0.00019999,2]
[349821543,1737451852980,-500.0,0.00019999,2]
[349821544,1737451852990,-500.0,0.00019999,2]
[349821545,1737451853000,-274.60976829,0.00019999,2]
[349821546,1737451853012,-338.42003843,0.00019999,2]
[349821547,1737451853022,-500.0,0.00019999,2]
[349821548,1737451853032,-500.0,0.00019999,2]
[349821549,1737451853043,-500.0,0.00019999,2]
[349821550,1737451853053,-153.35398085,0.00019999,2]
[349821551,1737451853064,-648.42,0.00019999,2]
[349821552,1737451853073,-439.17138335,0.00019999,2]
[349821553,1737451853083,-500.0,0.00019999,2]
[349821554,1737451853093,-1458.78,0.00019999,2]
[349821555,1737451853103,-500.0,0.00019999,2]
[349821556,1737451853113,-500.0,0.00019999,2]
[349821557,1737451853123,-500.0,0.00019999,2]
[349821558,1737451853133,-500.0,0.00019999,2]
[349821559,1737451853143,-500.0,0.00019999,2]
[349821560,1737451853153,-500.0,0.00019999,2]
[349821561,1737451853164,-500.0,0.00019999,2]
[349821562,1737451853174,-500.0,0.00019999,2]
[349821563,1737451853183,-500.0,0.00019999,2]
[349821564,1737451853192,-500.0,0.00019999,2]
[349821565,1737451853201,-500.0,0.00019999,2]
[349821566,1737451853210,-500.0,0.00019999,2]
[349821567,1737451853220,-500.0,0.00019999,2]
[349821568,1737451853229,-500.0,0.00019999,2]
[349821569,1737451853239,-500.0,0.00019999,2]
[349821570,1737451853248,-500.0,0.00019999,2]
[349821571,1737451853263,-294.82772123,0.00019999,2]
[349821572,1737451853273,-500.0,0.00019999,2]
[349821573,1737451853283,-500.0,0.00019999,2]
[349821574,1737451853293,-500.0,0.00019999,2]
[349821575,1737451853302,-522.28937905,0.00019999,2]
[349821576,1737451853314,-500.0,0.00019999,2]
[349821577,1737451853324,-500.0,0.00019999,2]
[349821578,1737451853334,-500.0,0.00019999,2]
[349821579,1737451853346,-500.0,0.00019999,2]
[349821580,1737451853355,-227.93806593,0.00019999,2]
[349821581,1737451853365,-500.0,0.00019999,2]
[349821582,1737451853378,-568.81,0.00019999,2]
[349821583,1737451853393,-500.0,0.00019999,2]
[349821584,1737451853405,-500.0,0.00019999,2]
[349821585,1737451853415,-500.0,0.00019999,2]
[349821586,1737451853424,-500.0,0.00019999,2]
[349821587,1737451853434,-500.0,0.00019999,2]
[349821588,1737451853444,-1180.87,0.00019999,2]
[349821589,1737451853455,-500.0,0.00019999,2]
[349821590,1737451853464,-500.0,0.00019999,2]
[349821591,1737451853473,-500.0,0.00019999,2]
[349821592,1737451853483,-503.53,0.00019999,2]
[349821593,1737451853493,-1000.0,0.00019999,2]
[349821594,1737451853505,-1042.35,0.00019999,2]
[349821595,1737451853515,-500.0,0.00019999,2]
[349821596,1737451853525,-500.0,0.00019999,2]
[349821597,1737451853535,-1431.03,0.00019999,2]
[349821598,1737451853545,-500.0,0.00019999,2]
[349821599,1737451853554,-500.0,0.00019999,2]
[349821600,1737451853564,-500.0,0.00019999,2]
[349821601,1737451853574,-500.0,0.00019999,2]
[349821602,1737451853583,-515.30644978,0.00019999,2]
[349821603,1737451853593,-500.0,0.00019999,2]
[349821604,1737451853603,-500.0,0.00019999,2]
[349821605,1737451853612,-500.0,0.00019999,2]
[349821606,1737451853622,-633.1988893,0.00019999,2]
[349821607,1737451853632,-500.0,0.00019999,2]
[349821608,1737451853641,-500.0,0.00019999,2]
[349821609,1737451853652,-300.0,0.00019999,2]
[349821610,1737451853661,-714.81,0.00019999,2]
[349821611,1737451853671,-500.0,0.0002,2]
[349821612,1737451853680,-500.0,0.0002,2]
[349821613,1737451853689,-500.0,0.0002,2]
[349821614,1737451853699,-500.0,0.0002,2]
[349821615,1737451853708,-500.0,0.0002,2]
[349821616,1737451853718,-500.0,0.0002,2]
[349821617,1737451853727,-500.0,0.0002,2]
[349821618,1737451853737,-500.0,0.0002,2]
[349821619,1737451853746,-500.0,0.0002,2]
[349821620,1737451853760,-500.0,0.0002,2]
[349821621,1737451853770,-500.0,0.0002,2]
[349821622,1737451853779,-181.05,0.0002,2]
[349821623,1737451853789,-1366.89,0.0002,2]
[349821624,1737451853799,-500.0,0.0002,2]
[349821625,1737451853808,-500.0,0.0002,2]
[349821626,1737451853817,-643.51,0.0002,2]
[349821627,1737451853827,-500.0,0.0002,2]
[349821628,1737451853836,-500.0,0.0002,2]
[349821629,1737451853845,-500.0,0.0002,2]
[349821630,1737451853855,-500.0,0.0002,2]
[349821631,1737451853865,-500.0,0.0002,2]
[349821632,1737451853874,-500.0,0.0002,2]
[349821633,1737451853884,-500.0,0.0002,2]
[349821634,1737451853893,-500.0,0.0002,2]
[349821635,1737451853903,-530.29743495,0.0002,2]
[349821636,1737451853912,-500.0,0.0002,2]
[349821637,1737451853921,-500.0,0.0002,2]
[349821638,1737451853931,-500.0,0.0002,2]
[349821639,1737451853940,-546.95695615,0.0002,2]
[349821640,1737451853949,-500.0,0.0002,2]
[349821641,1737451853959,-500.0,0.0002,2]
[349821642,1737451853968,-500.0,0.0002,2]
[349821643,1737451853978,-500.0,0.0002,2]
[349821644,1737451853987,-500.0,0.0002,2]
[349821645,1737451853996,-500.0,0.0002,2]
[349821646,1737451854008,-500.0,0.0002,2]
[349821647,1737451854018,-500.0,0.0002,2]
[349821648,1737451854027,-500.0,0.0002,2]
[349821649,1737451854041,-500.0,0.0002,2]
[349821650,1737451854050,-500.0,0.0002,2]
[349821651,1737451854060,-500.0,0.0002,2]
[349821652,1737451854069,-500.0,0.0002,2]
[349821653,1737451854079,-500.0,0.0002,2]
[349821654,1737451854089,-500.0,0.0002,2]
[349821655,1737451854099,-500.0,0.0002,2]
[349821656,1737451854108,-500.0,0.0002,2]
[349821657,1737451854118,-500.0,0.0002,2]
[349821658,1737451854128,-85357.22805677,0.0002,14]
[349821659,1737451854137,-1391.73885533,0.0002,5]
[349821660,1737451854147,-45674.48874322,0.0002,2]
[349821661,1737451854157,-61111.67454527,0.0002,4]
[349821662,1737451854167,-500.0,0.0002,2]
[349821663,1737451854176,-1442.47,0.0002,2]
[349821664,1737451854185,-451.14455577,0.0002,2]
[349821665,1737451854195,-1618.9,0.0002,2]
[349821666,1737451854203,-784.62,0.0002,2]
[349821667,1737451854213,-2359.45235867,0.0002,2]
[349821668,1737451854222,-1181.46,0.0002,2]
[349821669,1737451854231,-700.2,0.0002,2]
[349821670,1737451854239,-27341.74355345,0.0002,2]
[349821671,1737451854249,-500.0,0.0002,2]
[349821672,1737451854260,-864.13,0.0002,2]
[349821673,1737451854269,-1046.8,0.0002,2]
[349821674,1737451854278,-2225.67,0.0002,2]
[349821675,1737451854287,-997.49,0.0002,2]
[349821676,1737451854297,-500.0,0.0002,2]
[349821677,1737451854306,-643.01,0.0002,2]
[349821678,1737451854315,-500.0,0.0002,2]
[349821679,1737451854325,-1363.79,0.0002,2]
[349821680,1737451854334,-500.0,0.0002,2]
[349821681,1737451854343,-968.6,0.0002,2]
[349821682,1737451854353,-731.54,0.0002,2]
[349821683,1737451854362,-671.55,0.0002,2]
[349821684,1737451854371,-500.0,0.0002,2]
[349821685,1737451854384,-1512.89,0.0002,2]
[349821686,1737451854393,-1824.0,0.0002,2]
[349821687,1737451854402,-1000.0,0.0002,2]
[349821688,1737451854411,-538.81245564,0.0002,2]
[349821689,1737451854421,-500.0,0.0002,2]
[349821690,1737451854431,-720.36,0.0002,2]
[349821691,1737451854440,-500.0,0.0002,2]
[349821692,1737451854449,-500.0,0.0002,2]
[349821693,1737451854461,-500.0,0.0002,2]
[349821694,1737451854470,-1598.88,0.0002,2]
[349821695,1737451854479,-1625.7,0.0002,2]
[349821696,1737451854490,-500.0,0.0002,2]
[349821697,1737451854499,-11076.26,0.0002,2]
[349821698,1737451854510,-166.8928346,0.0002,2]
[349821699,1737451854519,-405.71652632,0.00020047,2]
[349821700,1737451854529,-35832.0,0.0002009,2]
[349821701,1737451854538,-244.10228762,0.00020172,2]
[349821702,1737451854547,-500.0,0.00020272,2]
[349821703,1737451854556,-500.0,0.00020272,2]
[349821704,1737451854669,-150.48321075,0.00020272,2]
[349821705,1737451854679,-647.89,0.00020272,2]
[349821706,1737451854689,-893.13,0.00020272,2]
[349821707,1737451854698,-500.0,0.00020272,2]
[349821708,1737451854707,-500.0,0.00020272,2]
[349821709,1737451854716,-288.83471578,0.00020272,2]
[349821710,1737451854726,-500.0,0.00020272,2]
[349821711,1737451854735,-500.0,0.00020272,2]
[349821712,1737451854744,-500.0,0.00020272,2]
[349821713,1737451854754,-500.0,0.00020272,2]
[349821714,1737451854763,-500.0,0.00020272,2]
[349821715,1737451854772,-500.0,0.00020272,2]
[349821716,1737451854782,-500.0,0.00020272,2]
[349821717,1737451854790,-174.17,0.00020272,2]
[349821718,1737451854799,-500.0,0.00020272,2]
[349821719,1737451854808,-500.0,0.00020272,2]
[349821720,1737451854818,-500.0,0.00020272,2]
[349821721,1737451854828,-521.49577962,0.00020272,2]
[349821722,1737451854837,-500.0,0.00020272,2]
[349821723,1737451854846,-500.0,0.00020272,2]
[349821724,1737451854856,-500.0,0.00020272,2]
[349821725,1737451854866,-500.0,0.00020272,2]
[349821726,1737451854876,-500.0,0.00020272,2]
[349821727,1737451854886,-500.0,0.00020272,2]
[349821728,1737451854895,-500.0,0.00020272,2]
[349821729,1737451854906,-500.0,0.00020272,2]
[349821730,1737451854915,-292.03568509,0.00020272,2]
[349821731,1737451854925,-500.0,0.00020272,2]
[349821732,1737451854934,-500.0,0.00020272,2]